[Event "Vienna Championship-B 2022"]
[Site "Vienna"]
[Date "2022.09.20"]
[Round "3.10"]
[White "Prummer, Sebastian"]
[Black "Iehl, William"]
[Result "0-1"]
[ECO "D02"]
[WhiteElo "1762"]
[BlackElo "1781"]
[Annotator "NA COMBH"]
[PlyCount "52"]
[EventDate "2022.09.17"]
[EventType "swiss"]
[EventCountry "AUT"]
[SourceTitle "playchess.com"]
[Source "ChessBase"]
[SourceQuality "1"]
[TimeControl "5400+30"]

1. Nf3 {[%emt 0:00:03]} d5 {[%emt 0:00:01]} 2. g3 {[%emt 0:00:09]} Nc6 {[%emt 0:00:05]} 3. d4 {[%emt 0:00:06]} Bf5 {[%emt 0:00:06]} 4. c4 {[%emt 0:00:12]} e6 {[%emt 0:00:50]} 5. Qa4 {[%emt 0:09:51]} Qd7 {[%emt 0:04:53]} 6. Bg2 {[%emt 0:01:23]} Nf6 {[%emt 0:01:35]} 7. O-O {[%emt 0:01:21]} Be7 {[%emt 0:00:57]} 8. Nc3 {[%emt 0:01:32]} Ne4 {[%emt 0:05:51]} 9. Rd1 {[%emt 0:03:01]} h5 {[%emt 0:05:53]} 10. cxd5 {[%emt 0:09:12]} exd5 {[%emt 0:02:10]} 11. h4 {[%emt 0:03:14]} f6 {[%emt 0:02:57]} 12. Qb5 {[%emt 0:02:20]} O-O-O {[%emt 0:02:47]} 13. Bf4 {[%emt 0:01:52]} g5 {[%emt 0:07:29]} 14. hxg5 {[%emt 0:00:31]} fxg5 {[%emt 0:01:25]} 15. Be5 {[%emt 0:05:31]} Nxc3 {[%emt 0:02:32]} 16. bxc3 {[%emt 0:01:26]} Nxe5 {[%emt 0:00:03]} 17. Qb3 {[%emt 0:00:50]} Nxf3+ {[%emt 0:04:58]} 18. Bxf3 {[%emt 0:00:18]} Be4 {[%emt 0:01:36]} 19. Bxe4 {[%emt 0:00:11]} dxe4 {[%emt 0:00:03]} 20. Rab1 {[%emt 0:00:27]} b6 {[%emt 0:01:30]} 21. c4 {[%emt 0:03:23]} Qf5 {[%emt 0:02:52]} 22. c5 {[%emt 0:02:00]} Rhf8 {[%emt 0:05:00]} 23. c6 {[%emt 0:08:53]} Rd6 {[%emt 0:09:18]} 24. d5 {[%emt 0:01:46]} Qxf2+ {[%emt 0:01:03]} 25. Kh1 {[%emt 0:00:06]} Qxe2 {[%emt 0:00:58]} 26. Qa4 {[%emt 0:02:25]} Rf2 {[%emt 0:36:38]} 0-1

[Event "Vienna Championship-B 2022"]
[Site "Vienna"]
[Date "2022.09.19"]
[Round "3.12"]
[White "Reif, Werner"]
[Black "Ginther, Tobias"]
[Result "1/2-1/2"]
[ECO "D02"]
[WhiteElo "1747"]
[BlackElo "1766"]
[Annotator "NA COMBH"]
[PlyCount "61"]
[EventDate "2022.09.17"]
[EventType "swiss"]
[EventCountry "AUT"]
[SourceTitle "playchess.com"]
[Source "ChessBase"]
[SourceQuality "1"]
[TimeControl "5400+30"]

1. d4 {[%emt 0:00:03]} d5 {[%emt 0:00:05]} 2. Nf3 {[%emt 0:00:06]} Nf6 {[%emt 0:00:07]} 3. c3 {[%emt 0:00:04]} Bf5 {[%emt 0:00:18]} 4. Qb3 {[%emt 0:00:53]} Qc8 {[%emt 0:01:16]} 5. Bg5 {[%emt 0:01:07]} Nbd7 {[%emt 0:00:39]} 6. Nbd2 {[%emt 0:01:41]} e6 {[%emt 0:01:23]} 7. e3 {[%emt 0:01:30]} c5 {[%emt 0:01:14]} 8. c4 {[%emt 0:08:06]} b6 {[%emt 0:09:39]} 9. Be2 {[%emt 0:09:49]} Be7 {[%emt 0:02:05]} 10. O-O {[%emt 0:02:58]} h6 {[%emt 0:00:39]} 11. Bh4 {[%emt 0:00:43]} g5 {[%emt 0:01:23]} 12. Bg3 {[%emt 0:00:08]} Nh5 {[%emt 0:00:59]} 13. cxd5 {[%emt 0:02:41]} Nxg3 {[%emt 0:01:24]} 14. fxg3 {[%emt 0:00:10]} exd5 {[%emt 0:03:18]} 15. Qxd5 {[%emt 0:02:32]} Be6 {[%emt 0:02:50]} 16. Qe4 {[%emt 0:01:15]} Nf6 {[%emt 0:01:13]} 17. Bb5+ {[%emt 0:01:27]} Kf8 {[%emt 0:01:27]} 18. Qc2 {[%emt 0:05:18]} Qd8 {[%emt 0:03:40]} 19. Bc4 {[%emt 0:05:50]} Bxc4 {[%emt 0:07:26]} 20. Qxc4 {[%emt 0:00:44]} cxd4 {[%emt 0:03:11]} 21. Ne5 {[%emt 0:03:38]} Rh7 {[%emt 0:02:07]} 22. exd4 {[%emt 0:01:03]} Qd5 {[%emt 0:19:10]} 23. Qxd5 {[%emt 0:05:53]} Nxd5 {[%emt 0:00:11]} 24. Ng6+ {[%emt 0:00:05]} Ke8 {[%emt 0:01:35]} 25. Nxe7 {[%emt 0:00:12]} Kxe7 {[%emt 0:00:16]} 26. Rae1+ {[%emt 0:01:11]} Kd7 {[%emt 0:02:10]} 27. Rf5 {[%emt 0:02:22]} Ne7 {[%emt 0:01:38]} 28. Rf2 {[%emt 0:03:18]} f5 {[%emt 0:01:04]} 29. Ref1 {[%emt 0:03:33]} Rc8 {[%emt 0:01:18]} 30. Nb3 {[%emt 0:03:43]} Rf7 {[%emt 0:00:57]} 31. Ra1 {[%emt 0:33:57]} 1/2-1/2

[Event "Vienna Championship-B 2022"]
[Site "Vienna"]
[Date "2022.09.19"]
[Round "3.13"]
[White "Pavlov, Alexander"]
[Black "Pantelic, Slobodan"]
[Result "0-1"]
[ECO "B41"]
[WhiteElo "1751"]
[BlackElo "1596"]
[Annotator "NA COMBH"]
[PlyCount "116"]
[EventDate "2022.09.17"]
[EventType "swiss"]
[EventCountry "AUT"]
[SourceTitle "playchess.com"]
[Source "ChessBase"]
[SourceQuality "1"]
[TimeControl "5400+30"]

1. e4 {[%emt 0:00:03]} c5 {[%emt 0:07:30]} 2. Nf3 {[%emt 0:00:07]} e6 {[%emt 0:00:03]} 3. d4 {[%emt 0:00:29]} cxd4 {[%emt 0:00:04]} 4. Nxd4 {[%emt 0:00:07]} a6 {[%emt 0:00:10]} 5. a3 {[%emt 0:00:23]} Be7 {[%emt 0:00:05]} 6. Be2 {[%emt 0:00:13]} d6 {[%emt 0:00:08]} 7. O-O {[%emt 0:01:10]} Nf6 {[%emt 0:00:04]} 8. Nc3 {[%emt 0:00:05]} b5 {[%emt 0:00:16]} 9. Kh1 {[%emt 0:00:43]} Bb7 {[%emt 0:00:07]} 10. Bf3 {[%emt 0:01:10]} Nbd7 {[%emt 0:00:05]} 11. Qe1 {[%emt 0:00:47]} Ne5 {[%emt 0:00:09]} 12. Be2 {[%emt 0:02:12]} Rc8 {[%emt 0:00:30]} 13. f4 {[%emt 0:01:13]} Nc4 {[%emt 0:00:15]} 14. Bf3 {[%emt 0:05:29]} Qb6 {[%emt 0:00:11]} 15. e5 {[%emt 0:10:11]} Bxf3 {[%emt 0:00:41]} 16. Nxf3 {[%emt 0:02:19]} dxe5 {[%emt 0:00:09]} 17. Nxe5 {[%emt 0:01:49]} O-O {[%emt 0:00:11]} 18. Qg3 {[%emt 0:06:37]} Rfd8 {[%emt 0:01:01]} 19. Nxc4 {[%emt 0:03:25]} Rxc4 {[%emt 0:00:06]} 20. b3 {[%emt 0:00:08]} Rc5 {[%emt 0:00:38]} 21. Bb2 {[%emt 0:00:17]} g6 {[%emt 0:00:36]} 22. Rad1 {[%emt 0:04:15]} Rcc8 {[%emt 0:00:52]} 23. Qf3 {[%emt 0:06:32]} Rxd1 {[%emt 0:01:45]} 24. Rxd1 {[%emt 0:00:21]} h5 {[%emt 0:00:23]} 25. Ne4 {[%emt 0:01:38]} Ng4 {[%emt 0:00:30]} 26. h3 {[%emt 0:02:25]} Nh6 {[%emt 0:00:29]} 27. Rd7 {[%emt 0:07:40]} Nf5 {[%emt 0:00:26]} 28. Rb7 {[%emt 0:13:09]} Qc6 {[%emt 0:00:27]} 29. Nf6+ {[%emt 0:04:00]} Bxf6 {[%emt 0:00:34]} 30. Qxc6 {[%emt 0:00:04]} Rxc6 {[%emt 0:00:11]} 31. Bxf6 {[%emt 0:26:59]} Rc8 {[%emt 0:00:16]} 32. Ra7 {[%emt 0:00:00]} h4 {[%emt 0:00:26]} 33. Rxa6 {[%emt 0:00:00]} Ng3+ {[%emt 0:00:16]} 34. Kh2 {[%emt 0:00:00]} g5 {[%emt 0:00:14]} 35. Bxg5 {[%emt 0:00:00]} Nf5 {[%emt 0:00:14]} 36. Ra5 {[%emt 0:00:00]} Rxc2 {[%emt 0:00:16]} 37. Rxb5 {[%emt 0:00:00]} Ne3 {[%emt 0:00:02]} 38. Kh1 {[%emt 0:00:00]} Nxg2 {[%emt 0:00:07]} 39. a4 {[%emt 0:00:00]} Ne1 {[%emt 0:00:03]} 40. Bxh4 {[%emt 0:00:00]} Nf3 {[%emt 0:00:02]} 41. Bg3 {[%emt 0:00:00]} Rc3 {[%emt 0:00:13]} 42. Kg2 {[%emt 0:00:00]} Nd4 {[%emt 0:00:05]} 43. Rb8+ {[%emt 0:00:00]} Kh7 {[%emt 0:00:05]} 44. Rb4 {[%emt 0:00:00]} Nxb3 {[%emt 0:00:09]} 45. Bf2 {[%emt 0:00:00]} Rd3 {[%emt 0:00:20]} 46. Rb7 {[%emt 0:00:00]} Kg6 {[%emt 0:00:03]} 47. Ra7 {[%emt 0:00:00]} Rc3 {[%emt 0:00:12]} 48. a5 {[%emt 0:00:00]} Rc2 {[%emt 0:00:10]} 49. a6 {[%emt 0:00:00]} Ra2 {[%emt 0:00:04]} 50. Ra8 {[%emt 0:00:00]} Nc5 {[%emt 0:00:03]} 51. a7 {[%emt 0:00:00]} Kh7 {[%emt 0:00:07]} 52. Rc8 {[%emt 0:00:00]} Rxa7 {[%emt 0:00:11]} 53. Rxc5 {[%emt 0:00:00]} Ra2 {[%emt 0:00:03]} 54. Kg3 {[%emt 0:00:00]} Kg6 {[%emt 0:00:06]} 55. Bd4 {[%emt 0:00:00]} f6 {[%emt 0:00:08]} 56. h4 {[%emt 0:00:00]} Ra3+ {[%emt 0:00:02]} 57. Kg4 {[%emt 0:00:00]} f5+ {[%emt 0:00:03]} 58. Rxf5 {[%emt 0:00:00]} exf5# {[%emt 0:00:02]} 0-1

[Event "Vienna Championship-B 2022"]
[Site "Vienna"]
[Date "2022.09.19"]
[Round "3.16"]
[White "Paseka, Christian"]
[Black "Stadlinger, Lukas"]
[Result "1-0"]
[ECO "E62"]
[WhiteElo "1568"]
[BlackElo "1729"]
[Annotator "NA COMBH"]
[PlyCount "71"]
[EventDate "2022.09.17"]
[EventType "swiss"]
[EventCountry "AUT"]
[SourceTitle "playchess.com"]
[Source "ChessBase"]
[SourceQuality "1"]
[TimeControl "5400+30"]

1. d4 {[%emt 0:00:30]} Nf6 {[%emt 0:00:30]} 2. Nf3 {[%emt 0:00:30]} g6 {[%emt 0:00:30]} 3. c4 {[%emt 0:00:30]} Bg7 {[%emt 0:00:30]} 4. Nc3 {[%emt 0:00:30]} O-O {[%emt 0:00:30]} 5. g3 {[%emt 0:00:30]} d6 {[%emt 0:00:30]} 6. Bg2 {[%emt 0:00:30]} Nc6 {[%emt 0:00:30]} 7. O-O {[%emt 0:00:30]} e5 {[%emt 0:00:30]} 8. d5 {[%emt 0:00:30]} Ne7 {[%emt 0:00:30]} 9. e4 {[%emt 0:00:30]} Nd7 {[%emt 0:00:30]} 10. h3 {[%emt 0:00:30]} f5 {[%emt 0:00:30]} 11. Bg5 {[%emt 0:00:30]} Nf6 {[%emt 0:00:30]} 12. Nd2 {[%emt 0:00:30]} h6 {[%emt 0:00:30]} 13. Bxf6 {[%emt 0:00:30]} Bxf6 {[%emt 0:00:30]} 14. f3 {[%emt 0:00:30]} Bd7 {[%emt 0:00:30]} 15. Qe2 {[%emt 0:00:30]} Qc8 {[%emt 0:00:30]} 16. Kh2 {[%emt 0:00:30]} Kh7 {[%emt 0:00:30]} 17. b4 {[%emt 0:00:30]} c5 {[%emt 0:00:30]} 18. b5 {[%emt 0:00:30]} a6 {[%emt 0:00:30]} 19. a4 {[%emt 0:00:30]} axb5 {[%emt 0:00:30]} 20. Nxb5 {[%emt 0:00:30]} Bxb5 {[%emt 0:00:30]} 21. cxb5 {[%emt 0:00:30]} Qc7 {[%emt 0:00:30]} 22. Nc4 {[%emt 0:00:30]} Rfb8 {[%emt 0:00:30]} 23. a5 {[%emt 0:00:30]} Nc8 {[%emt 0:00:30]} 24. b6 {[%emt 0:00:30]} Qd7 {[%emt 0:00:30]} 25. Rfb1 {[%emt 0:00:30]} Bd8 {[%emt 0:00:30]} 26. Ra3 {[%emt 0:00:30]} Ra6 {[%emt 0:00:30]} 27. h4 {[%emt 0:00:30]} g5 {[%emt 0:00:30]} 28. Bh3 {[%emt 0:00:30]} Qe7 {[%emt 0:00:30]} 29. Bxf5+ {[%emt 0:00:30]} Kg7 {[%emt 0:00:30]} 30. hxg5 {[%emt 0:00:30]} hxg5 {[%emt 0:00:30]} 31. Rh1 {[%emt 0:00:30]} Qf6 {[%emt 0:00:30]} 32. Kg2 {[%emt 0:00:30]} Ne7 {[%emt 0:00:30]} 33. Be6 {[%emt 0:00:30]} Ng6 {[%emt 0:00:30]} 34. Nxd6 {[%emt 0:00:30]} Bxb6 {[%emt 0:00:30]} 35. Qb5 {[%emt 0:00:30]} Qe7 {[%emt 0:00:30]} 36. Nf5+ {[%emt 0:00:30]} 1-0